fUSD/lending_fUSD_20260228
["ID","MTS","AMOUNT","RATE_DAILY","PERIOD"]
[406925955,1772280647972,-2000.0,0.00015552,2]
[406925956,1772280647982,-2000.0,0.00015552,2]
[406925957,1772280647991,-743.29162459,0.00015552,2]
[406925958,1772280648000,-2000.0,0.00015552,2]
[406925959,1772280648009,-2000.0,0.00015552,2]
[406925960,1772280648018,-151.0,0.00015552,2]
[406925961,1772280648031,-10175.40517186,0.00015554,2]
[406925962,1772280648040,-615.50826305,0.00015641,2]
[406925963,1772280648050,-6591.96144034,0.00015641,2]
[406925964,1772280648059,-1600.0,0.00015643,2]
[406925965,1772280648068,-7751.39,0.00015753,2]
[406925966,1772280648077,-174.04581251,0.00015828,2]
[406925967,1772280648087,-160.0,0.00015828,2]
[406925968,1772280648199,-1042.181552,0.00015887,7]
[406925969,1772280648209,-2251.016121,0.00015887,7]
[406925970,1772280648219,-150.0,0.000159,2]
[406925971,1772280648228,-150.0,0.000159,2]
[406925972,1772280648238,-150.0,0.000159,2]
[406925973,1772280648247,-150.0,0.000159,2]
[406925974,1772280648256,-161.72848927,0.000159,2]
[406925975,1772280648265,-150.0,0.000159,2]
[406925976,1772280648274,-150.0,0.000159,2]
[406925977,1772280648284,-150.0,0.000159,2]
[406925978,1772280648293,-1000.0,0.0001591,2]
[406925979,1772280648302,-317.53143114,0.0001595,2]
[406925980,1772280648311,-4683.16579743,0.00015963,2]
[406925981,1772280648321,-500.0,0.00015967,2]
[406925982,1772280648331,-500.0,0.00015967,2]
[406925983,1772280648341,-195.98442162,0.00015967,2]
[406925984,1772280648351,-1015.21,0.00016,3]
[406925985,1772280648360,-500.0,0.00016098,2]
[406925986,1772280648370,-573.95,0.00016098,2]
[406925987,1772280648380,-212.463246,0.00016099,2]
[406925988,1772280648389,-212.463246,0.00016099,2]
[406925989,1772280648399,-212.463246,0.00016099,2]
[406925990,1772280648409,-212.463246,0.00016099,2]
[406925991,1772280648418,-2500.0,0.00016099,2]
[406925992,1772280648427,-2500.0,0.00016099,2]
[406925993,1772280648436,-1015.31004766,0.00016099,2]
[406925994,1772280648446,-2500.0,0.00016099,2]
[406925995,1772280648455,-2500.0,0.00016099,2]
[406925996,1772280648465,-2212.37829793,0.00016099,2]
[406925997,1772280648475,-2500.0,0.00016099,2]
[406925998,1772280648485,-2500.0,0.00016099,2]
[406925999,1772280648494,-1118.86499239,0.00016099,2]
[406926000,1772280648503,-500.0,0.00016099,2]
[406926001,1772280648513,-1019.35272173,0.00016099,2]
[406926002,1772280648523,-703.36470484,0.00016099,2]
[406926003,1772280648533,-1009.53925467,0.00016099,2]
[406926004,1772280648543,-2500.0,0.00016099,2]
[406926005,1772280648553,-100000.0,0.000161,2]
[406926006,1772280648562,-151.0,0.000161,2]
[406926007,1772280648573,-151.0,0.000161,2]
[406926008,1772280648582,-9999.99,0.00016116,2]
[406926009,1772280648592,-10175.40517186,0.00016141,2]
[406926010,1772280648601,-5000.00759049,0.000162,5]
[406926011,1772280648610,-184.13,0.00016345,2]
[406926012,1772280648620,-6591.96144034,0.00016394,2]
[406926013,1772280648631,-167.606939,0.00016394,2]
[406926014,1772280648640,-167.606939,0.00016394,2]
[406926015,1772280648650,-167.606939,0.00016394,2]
[406926016,1772280648659,-167.606939,0.00016394,2]
[406926017,1772280648668,-151.0,0.00016394,2]
[406926018,1772280648678,-1500.0,0.00016433,2]
[406926019,1772280648687,-1500.0,0.00016433,2]
[406926020,1772280648696,-2632.101218,0.00016433,2]
[406926021,1772280648706,-1378.0,0.00016438,2]
[406926022,1772280648715,-308.99,0.00016438,2]
[406926023,1772280648726,-228.15,0.00016438,2]
[406926024,1772280648737,-300.0,0.00016438,3]
[406926025,1772280648746,-300.0,0.00016438,3]
[406926026,1772280648755,-300.0,0.00016438,3]
[406926027,1772280648764,-300.0,0.00016438,3]
[406926028,1772280648775,-300.0,0.00016438,3]
[406926029,1772280648784,-151.0,0.00016438,2]
[406926030,1772280648793,-151.0,0.00016438,2]
[406926031,1772280648803,-151.0,0.00016438,2]
[406926032,1772280648812,-7751.39,0.00016438,2]
[406926033,1772280648822,-151.0,0.00016438,2]
[406926034,1772280648831,-151.0,0.00016438,2]
[406926035,1772280648841,-264.648545,0.00016438,2]
[406926036,1772280648850,-266.81662109,0.00016438,2]
[406926037,1772280648859,-1378.0,0.00016493,2]
[406926038,1772280648868,-1378.0,0.00016548,2]
[406926039,1772280648878,-151.0,0.0001655,2]
[406926040,1772280648887,-1378.0,0.00016602,2]
[406926041,1772280648896,-3000.0,0.00016647,2]
[406926042,1772280648906,-501.57340438,0.00016647,2]
[406926043,1772280648915,-1032.89246011,0.00016647,2]
[406926044,1772280648924,-2990.28139264,0.00016647,2]
[406926045,1772280648934,-1050.78546123,0.00016647,2]
[406926046,1772280648943,-1279.13777388,0.00016647,2]
[406926047,1772280648953,-3000.0,0.00016647,2]
[406926048,1772280648962,-1378.0,0.00016657,2]
[406926049,1772280648971,-168.0,0.00016701,2]
[406926050,1772280648980,-1378.0,0.00016712,2]
[406926051,1772280648990,-167.1,0.00016712,2]
[406926052,1772280648999,-10175.40517186,0.00016727,2]
[406926053,1772280649008,-1378.0,0.00016767,2]
[406926054,1772280649017,-615.50826305,0.0001677,2]
[406926055,1772280649027,-2000.0,0.0001681,2]
[406926056,1772280649037,-1378.0,0.00016822,2]
[406926057,1772280649046,-168.0,0.00016853,2]
[406926058,1772280649056,-1378.0,0.00016876,2]
[406926059,1772280649065,-151.0,0.0001691,2]
[406926060,1772280649074,-2000.0,0.0001691,2]
[406926061,1772280649083,-1378.0,0.00016931,2]
[406926062,1772280649092,-4683.16579743,0.00016932,2]
[406926063,1772280649102,-150.0,0.00016938,14]
[406926064,1772280649111,-168.0,0.00016945,2]
[406926065,1772280649120,-1378.0,0.00016986,2]
[406926066,1772280649129,-147513.0296702,0.00017,2]
[406926067,1772280649138,-300.0,0.00017,2]
[406926068,1772280649151,-212.463246,0.00017,2]
[406926069,1772280649160,-212.463246,0.00017,2]
[406926070,1772280649170,-212.463246,0.00017,2]
[406926071,1772280649179,-212.46325,0.00017,2]
[406926072,1772280649190,-2000.0,0.0001701,2]
[406926073,1772280649199,-1378.0,0.00017041,2]
[406926074,1772280649209,-168.0,0.00017053,2]
[406926075,1772280649219,-1600.0,0.00017065,2]
[406926076,1772280649229,-1378.0,0.00017096,2]
[406926077,1772280649238,-25570.65765389,0.000171,2]
[406926078,1772280649247,-151.0,0.000171,2]
[406926079,1772280649256,-244.644846,0.000171,2]
[406926080,1772280649266,-1014.77674988,0.0001711,30]
[406926081,1772280649277,-171.1192,0.0001711,2]
[406926082,1772280649287,-171.1192,0.0001711,2]
[406926083,1772280649296,-171.1192,0.0001711,2]
[406926084,1772280649305,-171.1192,0.0001711,2]
[406926085,1772280649315,-171.1192,0.0001711,2]
[406926086,1772280649324,-171.1192,0.0001711,2]
[406926087,1772280649334,-6591.96144034,0.00017147,2]
[406926088,1772280649344,-167.606939,0.00017147,2]
[406926089,1772280649354,-167.606939,0.00017147,2]
[406926090,1772280649363,-167.606939,0.00017147,2]
[406926091,1772280649372,-167.606935,0.00017147,2]
[406926092,1772280649382,-1378.0,0.0001715,2]
[406926093,1772280649391,-798.53948142,0.00017195,2]
[406926094,1772280649400,-3500.0,0.00017195,2]
[406926095,1772280649410,-1378.0,0.00017205,2]
[406926096,1772280649419,-1378.0,0.0001726,2]
[406926097,1772280649429,-10175.40517186,0.00017314,2]
[406926098,1772280649438,-1378.0,0.00017315,2]
[406926099,1772280649447,-1378.0,0.0001737,2]
[406926100,1772280649456,-1378.0,0.00017424,2]
[406926101,1772280649465,-168.0,0.00017427,2]
[406926102,1772280649474,-1378.0,0.00017479,2]
[406926103,1772280649483,-168.0,0.000175,2]
[406926104,1772280649492,-694.42441671,0.000175,3]
[406926105,1772280649501,-5616.53495309,0.000175,3]
[406926106,1772280649510,-168.0,0.00017505,2]
[406926107,1772280649519,-168.0,0.00017525,2]
[406926108,1772280649530,-1378.0,0.00017534,2]
[406926109,1772280649539,-1378.0,0.00017589,2]
[406926110,1772280649549,-1378.0,0.00017643,2]
[406926111,1772280649558,-168.0,0.00017645,2]
[406926112,1772280649567,-1401.69339842,0.00017698,2]
[406926113,1772280649576,-168.0,0.00017715,2]
[406926114,1772280649585,-4000.0,0.00017743,2]
[406926115,1772280649595,-500.0,0.00017807,2]
[406926116,1772280649604,-573.95,0.00017807,2]
[406926117,1772280649613,-5000.0,0.00017808,2]
[406926118,1772280649623,-500.0,0.00017808,2]
[406926119,1772280649632,-800.0,0.00017808,2]
[406926120,1772280649642,-168.0,0.00017845,2]
[406926121,1772280649651,-151.0,0.00017845,2]
[406926122,1772280649661,-500.0,0.00017863,2]
[406926123,1772280649670,-1075.2658489,0.0001789,2]
[406926124,1772280649679,-615.50826305,0.000179,2]
[406926125,1772280649689,-317.53143114,0.000179,2]
[406926126,1772280649698,-6591.96144034,0.000179,2]
[406926127,1772280649707,-4683.16579743,0.000179,2]
[406926128,1772280649716,-398.90714608,0.000179,3]
[406926129,1772280649725,-558.04766754,0.000179,2]
[406926130,1772280649734,-3069.70499177,0.000179,2]
[406926131,1772280649743,-7951.98009949,0.000179,2]
[406926132,1772280649753,-10175.40517186,0.000179,2]
[406926133,1772280649762,-500.0,0.00017918,2]
[406926134,1772280649771,-500.0,0.00017972,2]
[406926135,1772280649782,-150.0,0.00017973,2]
[406926136,1772280649791,-150.0,0.00017973,2]
[406926137,1772280649800,-168.0,0.00017991,2]
[406926138,1772280649810,-300.0,0.00017999,2]
[406926139,1772280649819,-300.0,0.00017999,2]
[406926140,1772280649827,-292.6907697,0.00017999,2]
[406926141,1772280649837,-195.66587194,0.00017999,2]
[406926142,1772280649846,-5856844.8325466,0.00018,2]
[406926143,1772280650110,-1168.54480206,0.00018,2]
[406926144,1772280650124,-2389.15347552,0.00018,2]
[406926145,1772280650138,-722.8955016,0.00018,2]
[406926146,1772280650159,-3874.85299278,0.00018,2]
[406926147,1772280650174,-3900.90092701,0.00018,2]
[406926148,1772280650187,-613.4592,0.00018,2]
[406926149,1772280650304,-9217.04089208,0.00018,2]
[406926150,1772280650372,-470.0,0.00018,2]
[406926151,1772280650387,-1026.38678502,0.00018,2]
[406926152,1772280650398,-651.98542784,0.00018,2]
[406926153,1772280650424,-494.61771879,0.00018,2]
[406926154,1772280650437,-2589.01929,0.00018,2]
[406926155,1772280650448,-7629.51241606,0.00018,2]
[406926168,1772281444230,1000.0,0.0001711,120]
[406926169,1772281772156,-500.0,0.00011121,2]
[406926170,1772281772180,-500.0,0.00011266,2]
[406926171,1772281772202,-500.0,0.00011848,2]
[406926172,1772281772411,-466.99538414,0.00011848,2]
[406926179,1772281831384,-150.0,0.00011848,2]
[406926180,1772281831393,-500.0,0.0001204,2]
[406926181,1772281831403,-222.66531044,0.00012232,2]
[406926182,1772281831414,-977.33468956,0.00012232,2]
[406926183,1772281831423,-150.0,0.00012232,14]
[406926184,1772281831432,-2000.0,0.00012233,2]
[406926185,1772281831441,-500.0,0.00012315,2]
[406926186,1772281831450,-500.0,0.00012315,2]
[406926187,1772281831460,-377.50377431,0.00012315,2]
[406926188,1772281831469,-1345.54201185,0.00013032,2]
[406926189,1772281831479,-500.0,0.00013032,2]
[406926190,1772281831490,-300.0,0.00013454,2]
[406926191,1772281831500,-1680.0,0.00013455,2]
[406926192,1772281831510,-500.0,0.00013698,2]
[406926193,1772281831520,-500.0,0.00013698,2]
[406926194,1772281831529,-500.0,0.00013698,2]
[406926195,1772281831538,-573.95,0.00013698,2]
[406926196,1772281831548,-500.0,0.00013698,2]
[406926197,1772281831563,-150.0,0.00013884,2]
[406926198,1772281831573,-150.0,0.00013907,2]
[406926199,1772281831582,-529.02288049,0.00013908,2]
[406926200,1772281831591,-500.0,0.00013908,2]
[406926201,1772281831600,-500.0,0.00013908,2]
[406926202,1772281831610,-500.0,0.00013908,2]
[406926203,1772281831619,-500.0,0.00013908,2]
[406926204,1772281831628,-500.0,0.00013908,2]
[406926205,1772281831637,-500.0,0.00013908,2]
[406926206,1772281831645,-500.0,0.00013908,2]
[406926207,1772281831654,-500.0,0.00013908,2]
[406926208,1772281831663,-500.0,0.00013908,2]
[406926209,1772281831672,-206.96764065,0.00013908,2]
[406926210,1772281831683,-293.03235935,0.00013908,2]
[406926211,1772281831692,-303.58075721,0.00013908,2]
[406926212,1772281831710,-196.41924279,0.00013908,2]
[406926213,1772281831718,-407.42311318,0.00013908,2]
[406926214,1772281831729,-92.57688682,0.00013908,2]
[406926215,1772281831739,-500.0,0.00013908,2]
[406926216,1772281831747,-500.0,0.00013908,2]
[406926217,1772281831756,-500.0,0.00013908,2]
[406926218,1772281831765,-500.0,0.00013908,2]
[406926219,1772281831774,-500.0,0.00013908,2]
[406926220,1772281831782,-500.0,0.00013908,2]
[406926222,1772281831791,-500.0,0.00013908,2]
[406926224,1772281831800,-500.0,0.00013908,2]
[406926226,1772281831809,-500.0,0.00013908,2]
[406926227,1772281831818,-2415.11,0.00014102,2]
[406926229,1772281831828,-150.99,0.0001411,2]
[406926231,1772281831837,-512.0,0.0001411,2]
[406926233,1772281831846,-1852.42,0.00014165,2]
[406926235,1772281831856,-150.0,0.00014235,2]
[406926237,1772281831866,-668.65185757,0.00014447,2]
[406926238,1772281831876,-937.54577261,0.00014456,2]
[406926239,1772281831885,-1000.0,0.00014456,2]
[406926240,1772281831894,-170.33471304,0.00014456,2]
[406926242,1772281831903,-646.84360097,0.00014456,2]
[406926244,1772281831913,-1000.0,0.00014456,2]
[406926246,1772281831921,-1000.0,0.00014456,2]
[406926248,1772281831930,-1000.0,0.00014456,2]
[406926250,1772281831939,-530.04164094,0.00014456,2]
[406926252,1772281831953,-290.05642929,0.00014456,2]
[406926337,1772281840158,-179.90192977,0.00014456,2]
[406926338,1772281840167,-650.13473928,0.00014456,2]
[406926339,1772281840177,-1000.0,0.00014456,2]
[406926340,1772281840191,-1013.9298778,0.00014456,2]
[406926341,1772281840200,-1000.0,0.00014456,2]
[406926342,1772281840209,-1000.0,0.00014456,2]
[406926344,1772281840218,-1000.0,0.00014456,2]
[406926345,1772281840227,-1000.0,0.00014456,2]
[406926346,1772281840236,-1000.0,0.00014456,2]
[406926347,1772281840245,-1000.0,0.00014456,2]
[406926348,1772281840254,-1000.0,0.00014456,2]
[406926349,1772281840264,-243.29162459,0.00014456,2]
[406926350,1772281840273,-1000.0,0.00014456,2]
[406926351,1772281840282,-1000.0,0.00014456,2]
[406926352,1772281840291,-1000.0,0.00014456,2]
[406926353,1772281840300,-794.014,0.00014456,2]
[406926354,1772281840309,-350.01,0.00014456,2]
[406926355,1772281840319,-9999.99,0.00014456,2]
[406926356,1772281840328,-299.99,0.00014456,2]
[406926357,1772281840338,-2987.78,0.00014456,2]
[406926358,1772281840347,-4568.2,0.00014456,2]
[406926359,1772281840356,-348.57,0.00014456,2]
[406926360,1772281840365,-150.99,0.00014456,2]
[406926361,1772281840375,-9999.99,0.00014456,2]
[406926362,1772281840384,-3674.39,0.00014456,2]
[406926363,1772281840393,-1543.68,0.00014456,2]
[406926364,1772281840403,-693.3919763,0.00014502,2]
[406926365,1772281840412,-719.04747942,0.00014557,2]
[406926366,1772281840421,-745.65223616,0.00014612,2]
[406926367,1772281840430,-773.2413689,0.00014667,2]
[406926368,1772281840439,-801.85129955,0.00014722,2]
[406926369,1772281840449,-831.51979763,0.00014777,2]
[406926370,1772281840458,-862.28603014,0.00014832,2]
[406926371,1772281840467,-894.19061326,0.00014887,2]
[406926372,1772281840478,-927.27566595,0.00014942,2]
[406926373,1772281840490,-961.58486559,0.00014997,2]
[406926374,1772281840499,-1519.35272173,0.00015004,2]
[406926375,1772281840508,-1500.0,0.00015004,2]
[406926376,1772281840519,-218.82282533,0.00015004,2]
[406926377,1772281840528,-1500.0,0.00015004,2]
[406926378,1772281840538,-206.92723051,0.00015004,2]
[406926379,1772281840547,-1000.0,0.00015004,2]
[406926380,1772281840556,-1500.0,0.00015004,2]
[406926381,1772281840564,-1500.0,0.00015004,2]
[406926382,1772281840574,-1500.0,0.00015004,2]
[406926383,1772281840583,-541.26009197,0.00015004,2]
[406926384,1772281840592,-1618.86499239,0.00015004,2]
[406926385,1772281840602,-1500.0,0.00015004,2]
[406926386,1772281840611,-1500.0,0.00015004,2]
[406926387,1772281840620,-1500.0,0.00015004,2]
[406926388,1772281840629,-1203.36470484,0.00015004,2]
[406926389,1772281840638,-1500.0,0.00015004,2]
[406926390,1772281840647,-997.16350561,0.00015052,2]
[406926391,1772281840656,-4133.7097,0.00015252,2]
[406926392,1772281840666,-89546.4512,0.00015252,2]
[406926393,1772281840675,-2500.0,0.00015352,2]
[406926394,1772281840684,-5000.0,0.00015352,2]
[406926395,1772281840693,-317.53143114,0.00015352,2]
[406926396,1772281840702,-20182.76517966,0.00015352,2]
[406926397,1772281840712,-5562.57052734,0.00015352,2]
[406926398,1772281840721,-8479.5043099,0.00015352,2]
[406926399,1772281840731,-186.01588918,0.00015352,2]
[406926400,1772281840740,-2857.10870219,0.00015352,2]
[406926401,1772281840749,-294.50570148,0.00015442,2]
[406926402,1772281840758,-500.0,0.00015442,2]
[406926403,1772281840767,-151.0,0.00015442,2]
[406926404,1772281840776,-500.0,0.00015442,2]
[406926405,1772281840786,-151.0,0.00015442,2]
[406926406,1772281840795,-500.0,0.00015442,2]
[406926407,1772281840804,-500.0,0.00015442,2]
[406926408,1772281840813,-500.0,0.00015442,2]
[406926409,1772281840823,-500.0,0.00015442,2]
[406926410,1772281840832,-151.0,0.00015442,2]
[406926411,1772281840841,-151.0,0.00015442,2]
[406926412,1772281840850,-500.0,0.00015442,2]
[406926413,1772281840859,-151.0,0.00015442,2]
[406926414,1772281840868,-500.0,0.00015442,2]
[406926415,1772281840877,-500.0,0.00015442,2]
[406926416,1772281840887,-151.0,0.00015442,2]
[406926417,1772281840896,-446.84331536,0.00015442,2]
[406926418,1772281840905,-500.0,0.00015442,2]
[406926419,1772281840915,-500.0,0.00015442,2]
[406926420,1772281840924,-151.0,0.00015442,2]
[406926421,1772281840933,-500.0,0.00015442,2]
[406926422,1772281840942,-151.0,0.00015442,2]
[406926423,1772281840951,-500.0,0.00015442,2]
[406926424,1772281840961,-500.0,0.00015442,2]
[406926425,1772281840970,-500.0,0.00015442,2]
[406926426,1772281840979,-500.0,0.00015442,2]
[406926427,1772281840988,-151.0,0.00015442,2]
[406926428,1772281840997,-151.0,0.00015442,2]
[406926429,1772281841007,-151.0,0.00015442,2]
[406926430,1772281841015,-151.0,0.00015442,2]
[406926431,1772281841025,-500.0,0.00015442,2]
[406926432,1772281841034,-500.0,0.00015442,2]
[406926433,1772281841043,-500.0,0.00015442,2]
[406926434,1772281841053,-500.0,0.00015442,2]
[406926435,1772281841062,-500.0,0.00015442,2]
[406926436,1772281841072,-500.0,0.00015442,2]
[406926437,1772281841081,-500.0,0.00015442,2]
[406926438,1772281841090,-500.0,0.00015442,2]
[406926439,1772281841099,-500.0,0.00015442,2]
[406926440,1772281841108,-500.0,0.00015442,2]
[406926441,1772281841117,-500.0,0.00015442,2]
[406926442,1772281841127,-500.0,0.00015442,2]
[406926443,1772281841136,-16382.0,0.00015451,2]
[406926444,1772281841145,-2500000.0,0.00015452,2]
[406926445,1772281841154,-199.45357304,0.00015452,2]
[406926446,1772281841163,-2000.0,0.00015552,2]
[406926447,1772281841172,-2001.57340438,0.00015552,2]
[406926448,1772281841181,-2000.0,0.00015552,2]
[406926449,1772281841190,-2000.0,0.00015552,2]
[406926450,1772281841200,-2000.0,0.00015552,2]
[406926451,1772281841210,-2000.0,0.00015552,2]
[406926452,1772281841219,-2000.0,0.00015552,2]
[406926453,1772281841228,-1509.53925467,0.00015552,2]
[406926454,1772281841238,-2000.0,0.00015552,2]
[406926455,1772281841247,-20182.76517958,0.00015635,2]
[406926456,1772281841255,-250.0,0.00015655,2]
[406926457,1772281841265,-8479.50430988,0.00015862,2]
[406926458,1772281841274,-20182.76517958,0.00015918,2]
[406926459,1772281841283,-2500.0,0.00016099,2]
[406926460,1772281841292,-532.89246011,0.00016099,2]
[406926461,1772281841302,-2490.28139264,0.00016099,2]
[406926462,1772281841312,-550.78546123,0.00016099,2]
[406926463,1772281841321,-779.13777388,0.00016099,2]
[406926464,1772281841330,-2526.23779749,0.00016099,2]
[406926465,1772281841339,-2500.0,0.00016099,2]
[406926466,1772281841348,-160.0,0.00016104,2]
[406926467,1772281841358,-174.04581251,0.00016104,2]
[406926468,1772281841367,-150.0,0.00016116,2]
[406926469,1772281841377,-150.0,0.00016116,2]
[406926470,1772281841387,-9999.99,0.00016116,2]
[406926471,1772281841396,-200.0,0.00016136,2]
[406926472,1772281841406,-12870.85,0.00016144,2]
[406926473,1772281841415,-288.1281186,0.00016171,2]
[406926474,1772281841425,-20182.76517958,0.00016201,2]
[406926475,1772281841434,-8479.50430988,0.00016371,2]
[406926476,1772281841443,-308.99,0.00016438,2]
[406926477,1772281841452,-266.81662109,0.00016438,2]
[406926478,1772281841462,-20182.76517958,0.00016484,2]
[406926479,1772281841471,-317.53143114,0.00016626,2]
[406926480,1772281841485,-1023.23499725,0.00016626,2]
[406926481,1772281841494,-5562.57052734,0.00016626,2]
[406926482,1772281841503,-186.01588918,0.00016626,2]
[406926483,1772281841513,-2857.10870217,0.00016626,2]
[406926484,1772281841523,-798.53948142,0.00016647,2]
[406926485,1772281841533,-3000.0,0.00016647,2]
[406926486,1772281841542,-1600.0,0.00016745,2]
[406926487,1772281841553,-20182.76517958,0.00016768,2]
[406926488,1772281841563,-168.0,0.0001686,2]
[406926489,1772281841572,-8479.50430988,0.00016881,2]
[406926490,1772281841581,-2000.0,0.0001691,2]
[406926491,1772281841590,-2000.0,0.0001701,2]
[406926492,1772281841599,-2000.0,0.0001701,2]
[406926493,1772281841608,-20182.76517958,0.00017051,2]
[406926494,1772281841618,-171.1192,0.0001711,2]
[406926495,1772281841627,-171.1192,0.0001711,2]
[406926496,1772281841636,-171.1192,0.0001711,2]
[406926497,1772281841645,-171.1192,0.0001711,2]
[406926498,1772281841655,-171.1192,0.0001711,2]
[406926499,1772281841664,-171.1192,0.0001711,2]
[406926500,1772281841674,-1500.0,0.0001711,2]
[406926501,1772281841684,-1500.0,0.0001711,2]
[406926502,1772281841694,-2632.101218,0.0001711,2]
[406926503,1772281841704,-168.0,0.00017112,2]
[406926504,1772281841713,-168.0,0.0001716,2]
[406926505,1772281841723,-3500.0,0.00017195,2]
[406926506,1772281841733,-168.0,0.00017207,2]
[406926507,1772281841743,-20182.76517958,0.00017334,2]
[406926508,1772281841752,-168.0,0.00017339,2]
[406926509,1772281841762,-168.0,0.00017366,2]
[406926510,1772281841772,-8479.50430988,0.0001739,2]
[406926511,1772281841781,-168.0,0.0001742,2]
[406926512,1772281841791,-1378.0,0.00017426,2]
[406926513,1772281841801,-1378.0,0.00017481,2]
[406926514,1772281841810,-353.32081147,0.00017514,2]
[406926515,1772281841949,-1378.0,0.00017536,2]
[406926516,1772281841959,-1378.0,0.0001759,2]
[406926517,1772281841968,-20182.76517958,0.00017617,2]
[406926518,1772281841977,-256.0,0.0001762,2]
[406926519,1772281841987,-1378.0,0.00017645,2]
[406926520,1772281841996,-1378.0,0.000177,2]
[406926521,1772281842005,-153.87706577,0.000177,2]
[406926522,1772281842015,-1000.0,0.00017743,2]
[406926523,1772281842025,-1378.0,0.00017755,2]
[406926524,1772281842034,-153.87706576,0.00017767,2]
[406926525,1772281842043,-168.0,0.00017781,2]
[406926526,1772281842053,-500.0,0.00017799,2]
[406926527,1772281842062,-500.0,0.00017799,2]
[406926528,1772281842071,-500.0,0.00017799,2]
[406926529,1772281842080,-500.0,0.00017799,2]
[406926530,1772281842090,-508.21782231,0.00017799,2]
[406926531,1772281842099,-500.0,0.00017799,2]
[406926532,1772281842108,-500.0,0.00017799,2]
[406926533,1772281842117,-500.0,0.00017799,2]
[406926534,1772281842127,-195.98442162,0.00017799,2]
[406926535,1772281842136,-500.0,0.00017799,2]
[406926536,1772281842145,-573.95,0.00017799,2]
[406926537,1772281842154,-300.0,0.00017799,2]
[406926538,1772281842163,-292.6907697,0.00017799,2]
[406926539,1772281842173,-1000.0,0.000178,2]
[406926540,1772281842182,-1500000.0,0.000178,2]
[406926541,1772281842191,-32888.5933,0.000178,2]
[406926542,1772281842200,-500.0,0.00017808,2]
[406926543,1772281842209,-800.0,0.00017808,2]
[406926544,1772281842218,-1378.0,0.0001781,2]
[406926545,1772281842227,-13408.99150576,0.0001783,2]
[406926546,1772281842237,-996.63842886,0.0001783,2]
[406926547,1772281842246,-535.13915653,0.0001783,2]
[406926548,1772281842255,-153.87706576,0.00017833,2]
[406926549,1772281842264,-500.0,0.00017863,2]
[406926550,1772281842273,-1378.0,0.00017864,2]
[406926551,1772281842282,-168.0,0.0001787,2]
[406926552,1772281842292,-372.998721,0.00017889,2]
[406926553,1772281842301,-10000.0,0.000179,2]
[406926554,1772281842310,-153.87706576,0.000179,2]
[406926555,1772281842319,-317.53143114,0.000179,2]
[406926556,1772281842328,-1023.23499725,0.000179,2]
[406926557,1772281842337,-5562.57052734,0.000179,2]
[406926558,1772281842346,-199.45357304,0.000179,3]
[406926559,1772281842356,-20182.76517958,0.000179,2]
[406926560,1772281842365,-8479.50430988,0.000179,2]
[406926561,1772281842374,-186.01588918,0.000179,2]
[406926562,1772281842384,-500.0,0.00017918,2]
[406926563,1772281842393,-168.0,0.00017919,2]
[406926564,1772281842402,-1378.0,0.00017919,2]
[406926565,1772281842411,-500.0,0.00017972,2]
[406926566,1772281842420,-1378.0,0.00017974,2]
[406926567,1772281842430,-300.0,0.00017998,2]
[406926568,1772281842439,-103967.4827517,0.00017999,2]
[406926569,1772281842448,-300.0,0.00017999,2]
[406926570,1772281842457,-300.0,0.00017999,2]
[406926571,1772281842467,-195.66587194,0.00017999,2]